bitfinex-derivatives/quotes_ETHF0:USTF0_20250530
["timestamp","ask_amount","ask_price","bid_price","bid_amount"]
[1748616199788,0.1926,2594.9,2594.8,0.77056]
[1748616200381,3.2078,2595.8,2594.8,5.6563]
[1748616200585,3.2078,2595.8,2595.4,1.92596]
[1748616200783,3.97809,2595.8,2595.6,0.77029]
[1748616200989,0.7703,2595.7,2595.5,4.575]
[1748616201189,3.2078,2595.8,2595.7,0.77029]
[1748616201787,0.00578681,2596.0,2595.9,0.77023]
[1748616202485,0.77598681,2596.0,2595.9,0.77023]
[1748616202988,0.00578681,2596.0,2595.9,0.77023]
[1748616203291,0.77598681,2596.0,2595.9,3.2078]
[1748616203493,0.77598681,2596.0,2595.9,1.2978]
[1748616203787,0.77025,2595.9,2595.7,4.575]
[1748616204089,0.77023,2595.9,2595.8,1.2978]
[1748616204483,0.00578681,2596.0,2595.8,1.2978]
[1748616204684,0.77023,2595.9,2595.8,1.2978]
[1748616205983,0.77023,2595.9,2595.8,5.8718]
[1748616206685,0.00578681,2596.0,2595.8,5.8718]
[1748616206686,0.77600681,2596.0,2595.8,5.8718]
[1748616206887,0.77601681,2596.0,2595.8,6.64205]
[1748616207083,0.00578681,2596.0,2595.9,0.77023]
[1748616207294,0.00578681,2596.0,2595.9,2.08513]
[1748616207487,0.77598681,2596.0,2595.9,2.08513]
[1748616207794,0.00578681,2596.0,2595.9,4.574]
[1748616207995,0.77598681,2596.0,2595.9,4.574]
[1748616208589,0.77026,2595.8,2595.7,1.2528]
[1748616208893,3.98379681,2596.0,2595.7,5.8258]
[1748616209188,3.21358681,2596.0,2595.7,6.59606]
[1748616209384,0.77026,2595.8,2595.7,5.34326]
[1748616209585,0.00578681,2596.0,2595.9,0.77023]
[1748616209792,0.00578681,2596.0,2595.8,0.77026]
[1748616209994,0.77026,2595.9,2595.8,0.77026]
[1748616210295,0.00578681,2596.0,2595.9,0.77023]
[1748616210492,0.77599681,2596.0,2595.9,0.77023]
[1748616210698,0.77026,2595.9,2595.8,0.77025]
[1748616210990,0.00578681,2596.0,2595.9,0.77023]
[1748616211182,0.00578681,2596.0,2595.9,3.97803]
[1748616212891,0.616,2596.8,2596.2,1.92536]
[1748616213090,0.77004,2596.6,2596.5,0.77002]
[1748616213291,0.77008,2596.5,2596.4,0.77006]
[1748616213594,0.77009,2596.4,2596.3,9.20969]
[1748616213796,0.77007,2596.5,2596.4,0.77004]
[1748616214002,0.77009,2596.4,2596.3,9.20969]
[1748616214199,0.77009,2596.4,2596.3,6.00191]
[1748616216189,0.77007,2596.5,2596.4,0.77006]
[1748616217288,0.00578681,2596.6,2596.5,0.77006]
[1748616217494,0.77581681,2596.6,2596.5,0.77006]
[1748616217896,0.77009,2596.5,2596.4,0.77006]
[1748616218198,0.77583681,2596.6,2596.5,0.77006]
[1748616218498,0.00578681,2596.6,2596.5,0.77006]
[1748616220791,0.77581681,2596.6,2596.5,0.77006]
[1748616221001,0.00578681,2596.6,2596.5,0.77006]
[1748616221799,0.77581681,2596.6,2596.5,0.77006]
[1748616221993,0.00578681,2596.6,2596.5,0.77006]
[1748616230101,0.76984,2597.3,2596.9,1.92482]
[1748616230304,0.6727,2597.5,2597.4,0.76979]
[1748616230806,1.44246,2597.5,2597.4,0.76979]
[1748616232003,0.6727,2597.5,2597.4,0.76979]
[1748616232200,1.92448,2597.4,2596.6,3.2078]
[1748616232502,0.76997,2596.9,2596.8,0.76994]
[1748616232708,0.76992,2597.1,2597.0,0.76988]
[1748616234309,3.39398,2597.3,2596.7,7.68945]
[1748616234310,1.4694,2597.3,2597.2,0.76985]
[1748616234508,0.1925,2597.3,2597.2,8.40965]
[1748616235507,0.1925,2597.3,2597.2,4.432]
[1748616235709,0.96234,2597.3,2597.2,4.432]
[1748616236013,0.1925,2597.3,2597.2,5.20185]
[1748616236215,0.96232,2597.3,2597.2,4.432]
[1748616236420,2.20942,2597.3,2597.2,4.432]
[1748616236610,2.20943,2597.3,2597.2,5.20185]
[1748616236914,2.20943,2597.3,2597.2,4.432]
[1748616237611,8.36417,2597.3,2596.6,0.6534]
[1748616237815,0.77009,2596.4,2596.3,4.432]
[1748616238019,0.77014,2596.2,2596.1,0.00578681]
[1748616238309,3.97794,2596.2,2596.1,0.00578681]
[1748616238714,5.26814,2596.2,2596.1,0.00578681]
[1748616239917,10.26814,2596.2,2596.1,0.00578681]
[1748616240818,0.77032,2595.6,2595.5,4.432]
[1748616241019,0.77032,2595.7,2595.5,5.20234]
[1748616241412,0.77032,2595.6,2595.5,4.432]
[1748616241612,1.2913,2595.6,2595.5,5.20235]
[1748616241813,0.00577489,2595.8,2595.7,0.77029]
[1748616242219,0.00577489,2595.8,2595.6,1.2474]
[1748616242521,0.77603489,2595.8,2595.6,2.0177]
[1748616242818,0.77029,2595.7,2595.6,1.2474]
[1748616243215,1.29707489,2595.8,2595.5,4.433]
[1748616243421,1.29707489,2595.8,2595.7,0.77029]
[1748616243619,0.00577489,2595.8,2595.7,0.77029]
[1748616244018,0.77603489,2595.8,2595.7,0.77029]
[1748616244520,0.00577489,2595.8,2595.3,0.00577489]
[1748616244716,0.00577489,2595.8,2595.5,0.77034]
[1748616244917,0.77031,2595.7,2595.6,4.433]
[1748616245125,2.00895489,2595.8,2595.7,0.77029]
[1748616245319,0.00577489,2595.8,2595.7,0.77029]
[1748616247216,5.1018,2596.6,2596.5,0.77006]
[1748616247525,0.6185,2596.9,2596.8,0.76997]
[1748616247721,3.2078,2597.0,2596.9,0.76994]
[1748616248523,1.93097489,2597.2,2596.8,4.429]
[1748616248524,1.93097489,2597.2,2597.1,0.76988]
[1748616248717,1.93097489,2597.2,2597.0,0.76989]
[1748616248923,2.70084489,2597.2,2597.1,0.76988]
[1748616249322,0.66687489,2597.2,2597.1,0.76988]
[1748616249624,0.00577489,2597.2,2596.9,1.2834]
[1748616249813,0.76989,2597.1,2597.0,5.1989]
[1748616250013,2.03974489,2597.2,2597.0,4.429]
[1748616250225,0.76988,2597.1,2597.0,4.429]
[1748616250418,2.03973489,2597.2,2597.1,0.76988]
[1748616250615,1.26987489,2597.2,2597.0,4.429]
[1748616250815,1.26987489,2597.2,2597.1,0.76988]
[1748616250816,2.03974489,2597.2,2597.1,0.76988]
[1748616251321,12.62357489,2597.2,2595.6,3.2078]
[1748616251520,3.2078,2596.1,2595.6,4.5435]
[1748616251830,3.2078,2595.8,2595.6,1.3357]
[1748616252021,3.2078,2595.8,2595.7,0.77029]
[1748616252329,3.97806,2595.8,2595.6,2.106]
[1748616252525,3.97806,2595.8,2595.7,0.77029]
[1748616252722,4.4945,2595.8,2595.7,0.77029]
[1748616253221,0.6565,2596.0,2595.6,3.26151]
[1748616253418,0.6565,2596.0,2595.9,0.77023]
[1748616253821,0.77021,2596.0,2595.9,0.77022]
[1748616254519,0.77029,2595.8,2595.7,5.19927]
[1748616254723,0.77026,2595.8,2595.7,4.429]
[1748616254919,0.77029,2595.7,2595.6,1.3357]
[1748616255122,0.77029,2595.7,2595.6,5.7647]
[1748616256230,0.77029,2595.7,2595.6,6.53502]
[1748616256427,3.2078,2595.9,2595.6,5.7647]
[1748616256630,1.2474,2596.1,2595.6,5.7647]
[1748616256631,3.2078,2596.2,2595.6,7.69048]
[1748616256833,0.77026,2595.8,2595.7,2.76426]
[1748616257027,0.77025,2595.9,2595.8,0.77025]
[1748616257226,0.77025,2595.9,2595.8,2.11705]
[1748616257729,0.77025,2595.9,2595.8,1.3468]
[1748616258425,0.96285,2595.9,2595.8,1.3468]
[1748616258624,0.96285,2595.9,2595.8,2.11706]
[1748616259526,0.1926,2595.9,2595.8,2.11706]
[1748616260032,3.97788,2596.5,2596.4,0.77009]
[1748616260329,3.2078,2596.5,2596.4,0.77009]
[1748616260835,3.2078,2596.5,2596.2,1.92536]
[1748616260836,0.77009,2596.4,2596.3,1.965]
[1748616261328,3.97788,2596.5,2596.4,0.77009]
[1748616261637,0.77002,2596.7,2596.6,0.76999]
[1748616261928,0.6552,2597.0,2596.7,0.76996]
[1748616262133,5.1499,2597.1,2596.7,0.76996]
[1748616262134,3.9777,2597.1,2596.8,1.3421]
[1748616262331,0.7699,2597.1,2597.0,0.76991]
[1748616263429,0.76994,2596.9,2596.8,1.3421]
[1748616263636,0.76994,2596.9,2596.7,0.76997]
[1748616263637,1.9248,2597.0,2596.6,4.429]
[1748616263935,0.77006,2596.5,2596.4,1.2187]
[1748616264132,0.77004,2596.7,2596.6,0.77003]
[1748616264435,0.77004,2596.6,2596.5,0.77003]
[1748616264641,0.77004,2596.6,2596.5,0.77006]
[1748616265630,3.2078,2596.7,2596.4,1.2187]
[1748616265631,0.77006,2596.5,2596.4,1.98877]
[1748616267834,0.77006,2596.5,2596.4,1.2187]
[1748616268029,0.77788531,2596.5,2596.4,1.2187]
[1748616268234,0.77788531,2596.5,2596.4,1.98879]
[1748616269433,0.77788531,2596.5,2596.4,0.77009]
[1748616270440,0.77788531,2596.5,2596.0,1.9255]
[1748616270441,0.77032,2595.6,2595.5,0.77611489]
[1748616270641,0.77032,2595.6,2595.5,0.00577489]
[1748616271037,0.77032,2595.6,2595.5,0.77612489]
[1748616271334,3.97812,2595.7,2595.6,0.77032]
[1748616271928,3.2078,2595.7,2595.6,0.77032]
[1748616272127,3.2078,2595.7,2595.6,2.01832]
[1748616272735,0.00577489,2595.8,2595.7,0.77029]
[1748616272946,4.89e-06,2595.8,2595.7,8.40709]
[1748616275344,0.77026489,2595.8,2595.7,8.40709]
[1748616275540,0.77026489,2595.8,2595.7,5.19929]
[1748616275844,0.77029,2595.7,2595.6,1.248]
[1748616276146,3.97809,2595.7,2595.6,2.01831]
[1748616276347,3.2078,2595.7,2595.6,2.01831]
[1748616278044,3.97809,2595.7,2595.6,2.01831]
[1748616278638,0.77032,2595.6,2595.5,0.00577489]
[1748616279037,7.09502,2595.6,2595.5,0.00577489]
[1748616281144,0.77044,2595.2,2595.1,4.421]
[1748616281341,3.97824,2595.2,2595.1,0.77047]
[1748616281838,3.97824,2595.2,2594.9,1.2626]
[1748616281839,3.2078,2595.2,2594.9,1.2626]
[1748616282040,0.77049,2595.1,2595.0,0.77047]
[1748616286157,3.2078,2595.2,2595.1,0.77047]
[1748616288252,3.97824,2595.2,2595.1,0.77047]
[1748616288455,3.2078,2595.2,2595.1,0.77047]
[1748616292458,0.77046,2595.3,2595.2,0.77042]
[1748616293763,1.926,2595.4,2594.8,0.66497489]
[1748616294066,0.7705,2595.1,2595.0,0.77046]
[1748616294366,0.7705,2595.0,2594.9,2.04613]
[1748616294566,1.92604,2595.3,2595.0,0.77046]
[1748616294567,0.7705,2595.1,2595.0,0.77046]
[1748616299964,3.2078,2595.2,2594.8,3.20778489]
[1748616300158,3.2078,2595.5,2595.4,0.77035]
[1748616300357,3.20780489,2595.8,2595.7,0.77029]
[1748616300565,0.77032,2595.6,2595.5,1.229]
[1748616300867,0.77032,2595.6,2595.2,4.423]
[1748616300868,0.77036,2595.5,2595.4,0.77033]
[1748616301067,3.97816,2595.5,2595.4,0.77033]
[1748616301456,0.77038,2595.4,2595.3,1.99939]
[1748616301661,0.77047,2595.1,2595.0,0.7705]
[1748616301860,3.97826,2595.2,2595.1,0.77047]
[1748616302162,3.97824,2595.2,2595.1,0.77047]
[1748616302567,0.77047,2595.1,2594.9,4.423]
[1748616302772,3.85267,2594.9,2593.9,4.423]
[1748616303066,0.7707,2594.4,2594.3,0.77068]
[1748616303360,3.2078,2594.6,2594.5,0.77065]
[1748616303955,3.97842,2594.6,2594.5,0.77065]
[1748616304160,0.77062,2594.6,2594.5,2.07015]
[1748616304965,0.77061,2594.7,2594.6,0.77059]
[1748616305165,0.77058,2594.8,2594.7,0.77056]
[1748616305361,3.97834,2594.9,2594.8,0.77056]
[1748616305567,3.97833,2594.9,2594.8,0.77056]
[1748616306165,3.2078,2595.2,2595.1,0.77045]
[1748616306363,3.2078,2595.2,2594.7,1.2937]
[1748616306561,4.452,2595.2,2594.8,0.77054]
[1748616306769,0.77051,2595.0,2594.9,2.0642]
[1748616307072,1.9262,2595.1,2594.6,0.6373]
[1748616307273,0.77056,2594.9,2594.8,0.77054]
[1748616308167,3.97836,2594.9,2594.8,0.77054]
[1748616308469,0.77065,2594.5,2594.4,0.6582]
[1748616308770,3.2078,2594.9,2594.3,0.00577489]
[1748616308771,0.77068,2594.4,2594.3,0.00577489]
[1748616309467,0.77068,2594.4,2594.3,0.77648489]
[1748616309672,0.77068,2594.4,2594.3,0.00577489]
[1748616310267,5.0,2594.4,2594.0,1.2794]
[1748616310468,5.13475,2594.1,2593.4,1.304]
[1748616310672,0.77095,2593.5,2593.4,1.2794]
[1748616310862,5.13501,2593.8,2593.1,4.411]
[1748616311069,0.77093,2593.6,2593.5,0.77092]
[1748616311288,3.2078,2593.8,2593.7,0.77089]
[1748616311576,3.21357489,2593.8,2593.7,0.77089]
[1748616311962,0.00577489,2593.8,2593.7,2.05329]
[1748616312469,0.00577489,2593.8,2593.7,1.2824]
[1748616312673,0.00577489,2593.8,2593.7,2.05329]
[1748616312970,0.77663489,2593.8,2593.7,1.2824]
[1748616313172,0.77663489,2593.8,2593.7,2.05329]
[1748616313568,0.77663489,2593.8,2593.7,1.2824]
[1748616314267,0.77663489,2593.8,2593.7,2.05329]
[1748616314669,0.00577489,2593.8,2593.7,2.05329]
[1748616317777,0.00577489,2593.8,2593.7,7.05329]
[1748616319677,3.2078,2594.6,2594.5,0.77065]
[1748616320279,0.77062,2594.7,2594.6,0.7706]
[1748616320472,0.31076207,2594.8,2594.5,0.77063]
[1748616320473,0.77065,2594.6,2594.5,0.77063]
[1748616321075,0.77061,2594.7,2594.6,0.7706]
[1748616321271,1.92656,2594.6,2593.9,4.412]
[1748616321476,0.7708,2594.0,2593.9,4.412]
[1748616321680,0.7708,2594.0,2593.9,5.18283]
[1748616321980,3.2078,2594.4,2593.9,4.412]
[1748616322172,0.7708,2594.1,2594.0,1.2644]
[1748616322373,0.7708,2594.1,2594.0,2.0352]
[1748616322675,0.7708,2594.1,2594.0,1.2644]
[1748616322868,0.77086,2593.8,2593.7,1.41989]
[1748616323071,0.77085,2593.9,2593.8,0.77083]
[1748616323471,0.77085,2593.9,2593.8,1.2556]
[1748616323676,0.77086,2593.8,2593.7,1.41989]
[1748616323876,0.77089,2593.7,2593.6,5.052]
[1748616324078,0.77089,2593.7,2593.6,6.3076]
[1748616324474,0.77089,2593.7,2593.6,6.43852]
[1748616325081,3.97868,2593.8,2593.7,0.57819]
[1748616325982,0.77089,2593.7,2593.6,6.4385]
[1748616326283,3.97868,2593.8,2593.7,0.77089]
[1748616328279,3.2078,2593.8,2593.7,0.77089]
[1748616328479,3.2078,2594.1,2594.0,0.7708]
[1748616329173,3.2078,2594.1,2594.0,2.0255]
[1748616329581,3.2078,2594.1,2594.0,2.6611]
[1748616330277,0.00577489,2594.8,2594.0,6.8903]
[1748616330473,0.00577489,2594.8,2594.7,0.77059]
[1748616330879,0.77633489,2594.8,2594.7,1.40619]
[1748616331180,0.77074,2594.2,2594.1,4.412]
[1748616331383,0.77074,2594.2,2594.1,5.18277]
[1748616331581,3.2078,2594.5,2594.1,4.412]
[1748616331787,0.77073,2594.3,2594.2,0.77071]
[1748616331987,0.7707,2594.4,2594.3,0.77068]
[1748616332687,3.97846,2594.5,2594.4,0.77068]
[1748616332986,3.2078,2594.5,2594.2,2.03982]
[1748616333189,0.77071,2594.3,2594.2,2.03982]
[1748616334081,0.77071,2594.3,2594.2,1.2691]
[1748616334283,0.77071,2594.3,2594.2,0.77074]
[1748616335586,0.77077,2594.1,2594.0,1.42068]
[1748616335789,0.77076,2594.2,2594.1,0.77074]
[1748616336087,4.5423,2594.5,2593.8,4.412]
[1748616336284,0.77083,2593.9,2593.8,4.412]
[1748616336485,0.77082,2594.0,2593.9,0.7708]
[1748616336791,3.2078,2594.2,2593.9,1.2824]
[1748616337088,0.77072,2594.4,2594.3,0.77069]
[1748616337686,0.77074,2594.3,2594.2,0.77072]
[1748616338085,0.7707,2594.4,2594.3,0.77068]
[1748616338488,3.2078,2594.6,2594.2,4.4]
[1748616338690,3.97845,2594.6,2594.5,0.77065]
[1748616338993,3.2078,2594.6,2594.5,0.77065]
[1748616339294,0.77065,2594.5,2594.4,1.39136]
[1748616339486,0.77064,2594.6,2594.5,0.77065]
[1748616339686,0.77064,2594.6,2594.5,2.10945]
[1748616340091,1.93220489,2594.8,2594.6,0.7706]
[1748616340092,0.77061,2594.7,2594.6,0.7706]
[1748616340885,0.00577489,2594.8,2594.7,0.77059]
[1748616341484,0.00577489,2594.8,2594.7,2.02229]
[1748616342092,3.2078,2595.3,2595.2,0.77044]
[1748616342392,0.77047,2595.1,2595.0,4.399]
[1748616342597,0.77047,2595.1,2595.0,5.1695]
[1748616343098,0.77047,2595.1,2595.0,4.399]
[1748616343995,2.76326,2595.2,2595.1,0.77047]
[1748616344597,0.7705,2595.0,2594.9,1.2517]
[1748616344801,0.77052,2595.0,2594.9,0.77052]
[1748616345094,0.77048,2595.1,2595.0,0.77047]
[1748616345498,0.6625,2595.2,2595.1,0.77047]
[1748616345797,1.43294,2595.2,2595.1,0.77047]
[1748616345996,1.43294,2595.2,2594.8,7.66137489]
[1748616345997,0.77053,2594.9,2594.8,0.00577489]
[1748616346192,3.97833,2594.9,2594.8,4.89e-06]
[1748616346394,8.97833,2594.9,2594.8,4.89e-06]
[1748616346798,10.30143,2594.9,2594.8,4.89e-06]
[1748616348494,5.30143,2594.9,2594.8,4.89e-06]
[1748616349696,0.77053,2594.9,2594.8,0.77056489]
[1748616350493,0.77049,2595.1,2595.0,0.77047]
[1748616350698,0.7705,2595.0,2594.9,2.09221]
[1748616350900,0.7705,2595.0,2594.9,1.3217]
[1748616351094,0.7705,2595.0,2594.9,2.09223]
[1748616351899,5.1634,2595.2,2594.9,2.09223]
[1748616351900,0.77049,2595.1,2595.0,0.77048]
[1748616352195,3.2078,2595.2,2595.1,0.77047]
[1748616352591,3.97824,2595.2,2595.1,0.77047]
[1748616353791,3.2078,2595.2,2595.1,0.77047]
[1748616353998,0.77049,2595.1,2595.0,0.77048]
[1748616354197,0.77049,2595.1,2595.0,2.02808]
[1748616354504,3.97825,2595.2,2595.1,0.77047]
[1748616356406,0.77045,2595.2,2595.1,0.77047]
[1748616358302,0.77621489,2595.3,2595.2,0.77044]
[1748616358496,0.77047,2595.2,2595.1,0.77045]
[1748616360206,0.00577489,2595.3,2595.2,0.77044]
[1748616360600,0.77618489,2595.3,2595.2,0.77044]
[1748616360907,0.00577489,2595.3,2595.2,0.77044]
[1748616361094,0.77047,2595.2,2595.1,0.77046]
[1748616361297,0.00577489,2595.3,2595.2,0.77044]
[1748616361298,0.77620489,2595.3,2595.2,0.77044]
[1748616362003,0.00577489,2595.3,2595.2,0.77044]
[1748616362708,0.77618489,2595.3,2595.2,0.77044]
[1748616362914,0.00577489,2595.3,2595.2,0.77044]
[1748616363208,0.77032,2595.7,2595.6,0.77031]
[1748616366205,0.77053,2594.9,2594.8,4.39800489]
[1748616366601,0.77053,2594.9,2594.8,5.16856489]
[1748616369014,0.77053,2594.9,2594.8,4.39800489]
[1748616369209,0.77053,2594.9,2594.8,5.16856489]
[1748616370409,0.77053,2594.9,2594.8,4.89e-06]
[1748616370605,0.77083,2593.9,2593.8,1.9757]
[1748616370905,3.2078,2594.0,2593.5,4.383]
[1748616371306,5.8425,2594.0,2593.5,4.383]
[1748616371509,0.77088,2593.8,2593.7,0.77087]
[1748616371812,0.77088,2593.8,2593.6,1.3067]
[1748616371813,0.77089,2593.7,2593.6,1.3067]
[1748616372005,3.97869,2593.7,2593.6,1.3067]
[1748616372207,3.2078,2593.7,2593.6,2.07762]
[1748616372403,3.97869,2593.7,2593.6,1.3067]
[1748616372614,0.77092,2593.6,2593.5,4.38877489]
[1748616372913,0.77092,2593.6,2593.5,0.00577489]
[1748616373103,2.06312,2593.6,2593.5,0.00577489]
[1748616373305,3.97871,2593.7,2593.5,0.00577489]
[1748616373506,3.2078,2593.7,2593.6,0.77092]
[1748616373708,0.00577489,2594.0,2593.9,0.77083]
[1748616373912,0.00577489,2594.0,2593.9,3.97863]
[1748616374111,3.2078,2594.3,2594.2,0.77074]
[1748616374512,3.2078,2594.3,2594.2,2.70274]
[1748616375019,3.97851,2594.3,2594.2,1.932]
[1748616375312,0.77071,2594.3,2594.2,1.2793]
[1748616375516,3.97851,2594.3,2594.0,0.77078]
[1748616375822,0.77092,2593.6,2593.5,0.00577489]
[1748616376009,0.77091,2593.7,2593.5,0.00577489]
[1748616376316,3.2078,2593.8,2593.5,0.00577489]
[1748616376507,0.77092,2593.6,2593.5,0.77670489]
[1748616376715,0.77092,2593.6,2593.5,0.00577489]
[1748616377521,1.2283,2593.7,2593.5,0.00577489]
[1748616377723,3.2078,2593.8,2593.7,0.77089]
[1748616378013,0.77089,2593.7,2593.6,1.2988]
[1748616378215,0.77092,2593.6,2593.5,0.00577489]
[1748616378713,0.77092,2593.6,2593.5,2.07552489]
[1748616378916,0.77091,2593.7,2593.6,0.77091]
[1748616379312,0.96361,2593.7,2593.6,0.77091]
[1748616380213,0.1927,2593.7,2593.6,0.77091]
[1748616381727,0.96359,2593.7,2593.6,0.77091]
[1748616382314,0.77092,2593.6,2593.5,4.89e-06]
[1748616382515,0.77119,2592.7,2592.6,1.3099]
[1748616382818,0.77127,2592.4,2592.3,0.6324]
[1748616383021,3.2078,2592.4,2592.3,0.6324]
[1748616383210,3.2078,2592.4,2592.3,6.4037]
[1748616383415,3.2078,2592.7,2592.6,0.77122]
[1748616383818,0.77122,2592.6,2592.5,0.631]
[1748616384009,0.77122,2592.6,2592.5,1.40223]
[1748616384419,3.97901,2592.7,2592.6,0.77122]
[1748616384719,3.97901,2592.7,2592.6,2.00332]
[1748616385117,3.97901,2592.7,2592.3,2.56065]
[1748616385118,0.77127,2592.4,2592.3,0.6324]
[1748616385426,0.77133,2592.2,2592.1,0.00578626]
[1748616385923,5.77133,2592.2,2592.1,0.00578626]
[1748616386518,7.08963,2592.2,2592.1,0.00578626]
[1748616387118,2.08963,2592.2,2592.1,0.00578626]
[1748616387322,7.08963,2592.2,2592.1,0.00578626]
[1748616388021,0.77133,2592.2,2592.1,0.00578626]
[1748616389227,0.77131,2592.3,2592.2,0.77132]
[1748616389416,0.77131,2592.3,2592.2,2.07812]
[1748616389822,3.2078,2592.4,2592.2,2.07812]
[1748616389823,3.9791,2592.4,2592.2,2.07812]
[1748616390021,3.9791,2592.4,2592.3,1.3068]
[1748616390248,0.77133,2592.2,2592.1,0.00578626]
[1748616392021,0.77133,2592.2,2592.1,1.27498626]
[1748616392221,5.0,2592.2,2590.7,4.387]
[1748616392526,3.97945,2591.2,2591.0,1.2692]
[1748616392917,3.2078,2591.2,2591.0,2.04089]
[1748616393123,3.97943,2591.2,2591.0,1.2692]
[1748616393623,3.97945,2591.2,2591.0,2.04089]
[1748616393823,3.97943,2591.2,2591.0,2.04089]
[1748616394020,3.2078,2591.2,2591.0,1.2692]
[1748616394222,3.2078,2591.2,2591.1,0.77166]
[1748616394423,3.2078,2591.2,2591.0,2.04087]
[1748616394424,3.97945,2591.2,2591.0,2.04087]
[1748616395025,0.77166,2591.1,2591.0,2.04087]
[1748616395217,0.77172,2590.9,2590.8,0.00578626]
[1748616395425,3.2078,2590.9,2590.8,0.00578626]
[1748616395729,3.2078,2590.9,2590.8,5.77753626]
[1748616395920,0.00578626,2591.4,2591.3,0.7716]
[1748616396124,0.00578626,2591.4,2591.3,10.1596]
[1748616396325,0.77736626,2591.4,2591.2,4.388]
[1748616396626,3.9794,2591.3,2591.2,5.7294]
[1748616396831,3.9794,2591.3,2591.2,4.388]
[1748616397127,0.77163,2591.2,2591.1,0.6361]
[1748616397327,0.77163,2591.2,2590.8,0.00578626]
[1748616397328,0.77172,2590.9,2590.8,0.00578626]
[1748616397523,3.2078,2590.9,2590.8,0.77753626]
[1748616397725,0.77172,2590.9,2590.8,0.00578626]
[1748616397931,0.77166,2591.2,2591.0,0.77166]
[1748616398124,0.77168,2591.1,2590.9,5.0241]
[1748616398431,0.77163,2591.2,2591.1,0.77164]
[1748616398631,0.77166,2591.1,2591.0,0.77167]
[1748616398926,0.77166,2591.1,2590.9,5.0241]
[1748616399131,0.77169,2591.0,2590.9,5.0241]
[1748616399326,0.77172,2590.9,2590.8,0.00578626]
[1748616399628,0.00578626,2591.4,2590.8,7.58758626]
[1748616399827,0.77172,2590.9,2590.8,4.37978626]
[1748616400032,3.97952,2590.9,2590.8,0.00578626]
[1748616401325,0.77188,2590.4,2590.3,4.375]
[1748616401525,0.77186,2590.5,2590.4,0.77187]
[1748616402132,0.77187,2590.4,2590.3,4.375]
[1748616402332,0.7719,2590.3,2590.2,0.77192]
[1748616402525,0.7719,2590.3,2590.2,0.77193]
[1748616402731,3.15712,2590.8,2590.1,4.38078626]
[1748616402732,5.13736,2590.6,2590.1,4.38078626]
[1748616403026,0.77193,2590.2,2590.1,5.15273626]
[1748616403234,3.2078,2590.6,2590.1,4.38078626]
[1748616403427,0.77189,2590.4,2590.1,4.38078626]
[1748616403628,3.2078,2590.6,2590.1,4.38078626]
[1748616403930,0.7719,2590.3,2590.2,0.77191]
[1748616404340,0.77193,2590.2,2590.1,4.38078626]
[1748616404727,3.2078,2590.3,2590.1,4.38078626]
[1748616404934,3.2078,2590.6,2590.1,4.38078626]
[1748616405134,0.77184,2590.5,2590.4,0.77184]
[1748616405335,0.77187,2590.4,2590.3,0.77188]
[1748616405735,0.77187,2590.4,2590.3,0.7719]
[1748616406136,3.2078,2590.6,2590.1,4.38078626]
[1748616406737,0.77193,2590.2,2590.1,4.38178626]
[1748616406937,0.77193,2590.2,2590.1,5.15374626]
[1748616407442,0.96493,2590.2,2590.1,4.38178626]
[1748616408144,3.2078,2590.9,2590.1,9.38178626]
[1748616408437,3.2078,2591.2,2590.7,3.2078]
[1748616408646,0.77172,2591.0,2590.8,5.81203]
[1748616408834,0.77167,2591.1,2590.9,0.77172]
[1748616409035,0.00578626,2591.4,2591.0,3.2078]
[1748616409242,0.00578626,2591.4,2591.3,0.7716]
[1748616409446,0.00578626,2591.4,2591.3,5.1476]
[1748616409744,0.77735626,2591.4,2591.3,4.376]
[1748616409936,0.77735626,2591.4,2591.3,0.6635]
[1748616410138,0.77735626,2591.4,2591.3,4.376]
[1748616410347,0.77735626,2591.4,2590.7,3.2078]
[1748616410348,0.77168,2591.1,2590.9,0.7717]
[1748616410539,0.7717,2591.0,2590.8,1.43523]
[1748616410737,0.7717,2591.0,2590.9,0.77172]
[1748616411035,0.00578626,2591.4,2590.8,0.6635]
[1748616411234,0.77164,2591.2,2591.1,0.77165]
[1748616411440,0.00578626,2591.4,2591.0,0.77167]
[1748616411939,0.77162,2591.2,2591.1,4.376]
[1748616412742,0.77162,2591.2,2591.1,5.5995]
[1748616413137,0.77737626,2591.4,2591.3,0.77159]
[1748616413338,0.77735626,2591.4,2591.3,0.77159]
[1748616413733,0.77162,2591.2,2591.1,6.37114]
[1748616413942,0.77162,2591.2,2591.1,1.2235]
[1748616414250,0.77162,2591.2,2591.1,1.99515]
[1748616414445,0.77161,2591.3,2591.2,0.77161]
[1748616414748,0.00578626,2591.4,2591.3,0.77159]
[1748616414749,0.77737626,2591.4,2591.3,0.77159]
[1748616414948,0.77159,2591.3,2591.2,1.3308]
[1748616415247,0.77159,2591.3,2591.2,5.7068]
[1748616415942,0.00578626,2591.4,2591.3,0.77159]
[1748616416251,0.00578626,2591.4,2591.3,5.31019]
[1748616416446,0.00578626,2591.4,2591.3,10.31019]
[1748616416942,2.55334,2592.5,2591.6,1.92877]
[1748616417141,2.55334,2592.5,2591.7,6.9829]
[1748616417346,0.77141,2592.0,2591.7,6.9829]
[1748616417646,0.77141,2592.0,2591.9,0.77142]
[1748616417848,0.77141,2592.0,2591.8,1.3169]
[1748616417849,0.77142,2591.9,2591.8,1.3169]
[1748616419041,0.77142,2591.9,2591.8,2.08835]
[1748616419856,0.77139,2592.0,2591.9,0.7714]
[1748616420147,0.77142,2591.9,2591.8,2.08835]
[1748616420450,0.77141,2592.0,2591.9,0.77142]